Cogmind - Beta 14 @@@ ROGUE MODE // 2025.03.20 @ 01:46:04 Player: UberDoot Result: Destroyed by DAS Turret with DAS Cannon Performance ------------- Evolutions (1) 500 Regions Visited (5) 1000 Robots Destroyed (44) 220 Value Destroyed (872) 872 Prototype IDs (7) 140 Alien Tech Used (0) 0 Bonus (77) 77 TOTAL SCORE: 2809 Bonus ------- Follower Combat Kills 77 Cogmind --------- Core Integrity 0/400 Matter 65/450 Energy 264/265 System Corruption 0% Temperature Cool (0) Movement Core (1000) Ox19 Location -9/Exiles Parts ------- > --- POWER (1) -------- Improved Ion Engine > --- PROPULSION (2) --- (None) > --- UTILITY (3) ------ High-capacity Storage Unit Large Matter Pod Advanced Weapon Cycler > --- WEAPON (3) ------- Heavy Assault Rifle 8R-AWN's Boregun > --- INVENTORY (20) --- Improved Ion Engine Compact Wheel Compact Wheel Experimental Heat Sink Cooling System Cooling System Cooling System Seismic Detector Advanced Targeting Computer Trap Extractor (0/4) Heavy Assault Rifle Rocket Launcher Mini Grenade Launcher Plasma Cutter Heavy Hammer Peak State ------------ > --- POWER ------------ Improved Ion Engine > --- PROPULSION ------- Light Treads Wheel > --- UTILITY ---------- High-capacity Storage Unit Large Matter Pod Advanced Weapon Cycler > --- WEAPON ----------- Precision Beam Rifle Heavy Assault Rifle 8R-AWN's Boregun > --- INVENTORY -------- Improved Ion Engine Compact Wheel Compact Wheel Experimental Heat Sink Cooling System Cooling System Cooling System Seismic Detector Advanced Targeting Computer Trap Extractor Heavy Assault Rifle Rocket Launcher Mini Grenade Launcher Plasma Cutter Heavy Hammer [Rating: 33] Favorites ----------- Power Ion Engine Engine Ion Engine Propulsion Light Treads Treads Light Treads Wheel Wheel Utility High-capacity Storage Unit Device Cooling System Storage High-capacity Storage Unit Processor Advanced Targeting Computer Protection Light Armor Plating Weapon Precision Beam Rifle Energy Gun Precision Beam Rifle Ballistic Gun Heavy Assault Rifle Launcher Rocket Launcher Special Weapon Mining Laser Impact Weapon Heavy Hammer Build | -11 -10 -10 -9 -9 -9 ------- Run | Yrd Mat Min Mat Min Exi Slots Evolved 2 | . . . 2 . . Power . | . . . . . . Propulsion . | . . . . . . Utility 1 | . . . 1 . . Weapon 1 | . . . 1 . . Parts Attached 61 | 8 10 . 22 . 21 Power 3 | 1 . . 2 . . Engine 3 | 1 . . 2 . . Core . | . . . . . . Reactor . | . . . . . . Propulsion 15 | 2 3 . 5 . 5 Treads 11 | 2 1 . 4 . 4 Leg . | . . . . . . Wheel 4 | . 2 . 1 . 1 Hover . | . . . . . . Flight . | . . . . . . Utility 17 | 3 4 . 5 . 5 Device 9 | 2 1 . 4 . 2 Storage 5 | 1 2 . . . 2 Processor 2 | . 1 . 1 . . Hackware . | . . . . . . Protection 1 | . . . . . 1 Artifact . | . . . . . . Weapon 26 | 2 3 . 10 . 11 Energy Gun 12 | . 3 . 7 . 2 Energy Cannon . | . . . . . . Ballistic Gun 10 | 2 . . 1 . 7 Ballistic Cannon . | . . . . . . Launcher 2 | . . . . . 2 Special Weapon 1 | . . . 1 . . Impact Weapon 1 | . . . 1 . . Slashing Weapon . | . . . . . . Piercing Weapon . | . . . . . . Special Melee Weapon . | . . . . . . Unidentified Prototypes 3 | . . . 1 . 2 Parts Lost 14 | . 2 . 1 . 11 Power . | . . . . . . Propulsion 6 | . . . . . 6 Utility 2 | . 1 . . . 1 Weapon 6 | . 1 . 1 . 4 Highest Loss Streak 5 | . 1 . 1 . 5 To Critical Strikes 6 | . . . . . 6 Average Slot Usage (%) 98 | . 99 100 99 100 97 Engine 12 | . 14 14 11 11 11 Treads 13 | . 18 14 11 11 13 Wheel 9 | . 9 14 10 11 7 Device 8 | . 5 . 11 11 11 Storage 11 | . 14 14 11 11 7 Processor 9 | . 7 14 11 11 9 Protection 1 | . . . . . 4 Energy Gun 17 | . 12 28 28 22 6 Ballistic Gun 12 | . 15 . 3 11 23 Peak Build Rating 33 | 8 11 11 25 23 33 Average Rating 16 | 6 9 11 21 23 19 On Entrance 12 | . 8 11 11 23 23 Naked Turns . | . . . . . . Heaviest Build 60 | 14 51 51 56 56 60 Greatest Support 43 | 40 40 10 10 10 43 Greatest Overweight (x) 5 | . 5 5 5 5 5 Average Overweight (x) 3 | . 2 5 4 5 2 Largest Inventory Capacity 20 | 8 20 20 20 20 20 Average Capacity 15 | 7 15 20 20 20 11 Most Carried 20 | 8 20 20 20 20 20 Average Carried 14 | 5 13 19 19 19 8 Final Capacity 20 | 8 20 20 20 20 20 Final Carried 20 | 8 20 20 20 20 15 Class Distribution -------------------- 55% | Gunner 38% | Mutant 6% | Scavenger-Mutant Dominant Class ---------------- Mutant | -10/Materials Mutant | -10/Mines Gunner | -9/Materials Gunner | -9/Mines Gunner | -9/Exiles Resources | -11 -10 -10 -9 -9 -9 ----------- Run | Yrd Mat Min Mat Min Exi Matter Collected 1111 | 336 247 . 281 . 247 Remotely . | . . . . . . Salvage Created 1396 | 207 537 . 531 . 121 Parts 105 | 25 44 . 32 . 4 Haulers Intercepted 2 | . 1 . 1 . . Recyclers Shooed . | . . . . . . Parts Field Recycled . | . . . . . . Retrieved Matter . | . . . . . . Parts Self-Destructed . | . . . . . . Prevented . | . . . . . . Kills | -11 -10 -10 -9 -9 -9 ------- Run | Yrd Mat Min Mat Min Exi Combat Hostiles Destroyed 33 | . 13 . 15 . 5 Guns 30 | . 12 . 15 . 3 AOE 3 | . 1 . . . 2 Classes Destroyed 9 | 2 5 . 1 . 1 Builder 1 | . 1 . . . . Tunneler 7 | 7 . . . . . Hauler 2 | . 1 . 1 . . Recycler 1 | 1 . . . . . Watcher 4 | . 2 . 2 . . Swarmer 13 | . 5 . 8 . . Grunt 11 | . 8 . 3 . . Sentry 4 | . . . 4 . . Assembled 4 | . . . . . 4 Best Kill Streak 4 | 3 4 . 4 . 3 Combat Bots Only 4 | . 3 . 4 . 3 Max Kills in Single Turn 2 | 1 1 . 1 . 2 Gunslinging . | . . . . . . Exploded 2 | . 1 . . . 2 Melee . | . . . . . . Uniques/NPCs Destroyed 1 | . . . . . 1 8R-AWN (-9/Exiles) Combat | -11 -10 -10 -9 -9 -9 -------- Run | Yrd Mat Min Mat Min Exi Hostile Shots Fired 214 | . 61 . 59 . 94 Missed 53 | . 20 . 15 . 18 Damage Taken 2354 | . 472 . 457 . 1425 Core 517 | . 111 . 112 . 294 Absorbed by Shields . | . . . . . . Regen/Repaired (Parts) 120 | . . . 120 . . Core Remaining (%) 77 | 100 . 55 . . . Volleys Fired 143 | 14 50 . 32 . 47 Largest 3 | 2 2 . 3 . 3 Hottest 187 | 40 90 . 187 . 145 Shots Fired 342 | 28 100 . 94 . 120 Gun 337 | 28 100 . 93 . 116 Cannon . | . . . . . . Launcher 4 | . . . . . 4 Special 1 | . . . 1 . . Kinetic 218 | 28 76 . 17 . 97 Thermal 96 | . . . 77 . 19 Explosive 4 | . . . . . 4 Electromagnetic 24 | . 24 . . . . Robot Hit Streak 18 | 7 16 . 18 . 15 Robot Miss Streak 6 | 2 4 . 6 . 2 Penetration Max . | . . . . . . Secondary Targets 4 | . 1 . 3 . . Max Gunslinging Chain 1 | . 1 . 1 . . Shots Hit Robots 260 | 19 68 . 75 . 98 Core Hits 99 | 12 30 . 36 . 21 Critical Kills 1 | 1 . . . . . Critical Parts Destroyed . | . . . . . . Critical Strikes 9 | 1 . . 5 . 3 Burn 7 | . . . 5 . 2 Destroy 2 | 1 . . . . 1 Melee Attacks 1 | . . . 1 . . Impact 1 | . . . 1 . . Slashing . | . . . . . . Piercing . | . . . . . . Sneak Attacks . | . . . . . . Combat Hostiles . | . . . . . . Follow-up Attacks . | . . . . . . Damage Inflicted 3969 | 196 806 . 1280 . 1687 Guns 3748 | 196 777 . 1280 . 1495 Cannons . | . . . . . . Explosions 221 | . 29 . . . 192 Melee . | . . . . . . Ramming . | . . . . . . Kinetic 2026 | 196 506 . 149 . 1175 Thermal 1480 | . 29 . 1131 . 320 Explosive 192 | . . . . . 192 Electromagnetic 271 | . 271 . . . . Impact . | . . . . . . Slashing . | . . . . . . Piercing . | . . . . . . Highest Corruption . | . . . . . . Average Corruption . | . . . . . . Corruption Purged . | . . . . . . Corruption Blocked . | . . . . . . Overload Shots . | . . . . . . Overflow Damage 29 | . 9 . . . 20 Projectiles . | . . . . . . Explosions 29 | . 9 . . . 20 Melee . | . . . . . . Knockbacks . | . . . . . . Impact . | . . . . . . Kinetic . | . . . . . . Secondary . | . . . . . . Self-Inflicted Damage 50 | . 36 . . . 14 Shots 2 | . 1 . . . 1 Rammed . | . . . . . . Targets Rammed . | . . . . . . Kicked . | . . . . . . Crushed . | . . . . . . Highest Temperature 310 | . 102 . 310 . 24 Average Temperature 65 | . 25 . 92 . 11 Received Heat Transfer 267 | . 183 . 84 . . Effects 3 | . . . 3 . . Energy Bleed 1 | . . . 1 . . Interference 2 | . . . 2 . . Siege Activations . | . . . . . . Robots Corrupted . | . . . . . . Combat Hostiles . | . . . . . . Parts Fried . | . . . . . . Impact Corruptions . | . . . . . . Robots Melted . | . . . . . . Combat Hostiles . | . . . . . . Parts Melted 3 | . . . 3 . . Heat Transferred 2867 | . 50 . 2610 . 207 Parts Sabotaged . | . . . . . . Parts Stolen . | . . . . . . Parts Stripped . | . . . . . . Power Chain Reactions 1 | . 1 . . . . Alert | -11 -10 -10 -9 -9 -9 ------- Run | Yrd Mat Min Mat Min Exi Peak Influence 313 | 40 313 69 251 152 . Initial 97 | . 26 69 26 97 . Average 98 | 16 134 69 94 107 . Maximum Alert Level 1 | . 1 . 1 . . Low Security (%) 88 | 100 80 100 87 100 . Level 1 11 | . 19 . 12 . . Level 2 . | . . . . . . Level 3 . | . . . . . . Level 4 . | . . . . . . Level 5 . | . . . . . . High Security . | . . . . . . Max Security . | . . . . . . Squads Dispatched 5 | . 2 . 3 . . Investigation 2 | . . . 2 . . Extermination . | . . . . . . Reinforcement 3 | . 2 . 1 . . Assault . | . . . . . . Garrison . | . . . . . . Intercept . | . . . . . . Searches Triggered . | . . . . . . Construction Impeded . | . . . . . . Haulers Reinforced . | . . . . . . Active Scanning Responses . | . . . . . . Cargo Convoy Interrupts . | . . . . . . Stealth | -11 -10 -10 -9 -9 -9 --------- Run | Yrd Mat Min Mat Min Exi Distress Signals 1 | . . . 1 . . Communications Jammed . | . . . . . . Distress Signals . | . . . . . . Times Spotted 61 | . 29 . 22 . 10 Peak Tracking Total 9 | . 4 . 4 . 9 Tactical Retreats 4 | . 2 . 1 . 1 Traps | -11 -10 -10 -9 -9 -9 ------- Run | Yrd Mat Min Mat Min Exi Traps Triggered 2 | . . . 2 . . Indirectly . | . . . . . . Trap Hack Attempts . | . . . . . . Triggered . | . . . . . . Disarmed . | . . . . . . Reprogrammed . | . . . . . . Reused . | . . . . . . Traps Extracted . | . . . . . . Installed . | . . . . . . Triggered . | . . . . . . Machines | -11 -10 -10 -9 -9 -9 ---------- Run | Yrd Mat Min Mat Min Exi Machines Disabled 7 | . 1 . 1 . 5 Max in Single Turn 1 | . 1 . 1 . 1 Machines Repaired . | . . . . . . Machines Dismantled . | . . . . . . Machines Sabotaged . | . . . . . . Overloaded Fab Kills . | . . . . . . Hacking | -11 -10 -10 -9 -9 -9 --------- Run | Yrd Mat Min Mat Min Exi Machines Accessed 11 | . 5 . 5 . 1 Terminals 7 | . 4 . 3 . . Fabricators . | . . . . . . Repair Stations 2 | . 1 . 1 . . Recycling Units . | . . . . . . Scanalyzers 1 | . . . 1 . . Garrison Access . | . . . . . . Total Hacks 36 | . 14 . 21 . 1 Successful 21 | . 5 . 15 . 1 Failed 14 | . 9 . 5 . . Catastrophic . | . . . . . . Database Lockouts 1 | . . . 1 . . Manual 17 | . 8 . 9 . . Terminals 21 | . 10 . 11 . . Fabricators . | . . . . . . Repair Stations 8 | . 4 . 4 . . Recycling Units . | . . . . . . Scanalyzers 6 | . . . 6 . . Garrison Access . | . . . . . . Terminal Hacks 7 | . 2 . 4 . 1 Record 1 | . . . . . 1 Part Schematic 1 | . . . 1 . . Robot Analysis 1 | . . . 1 . . Prototype ID Bank 2 | . 1 . 1 . . Alert Level 1 | . . . 1 . . Locate Traps 1 | . 1 . . . . Fabricator Hacks . | . . . . . . Repair Station Hacks 3 | . 1 . 2 . . Scan Component 2 | . 1 . 1 . . Repair 1 | . . . 1 . . Recycling Unit Hacks . | . . . . . . Scanalyzer 6 | . . . 6 . . Insert Component 3 | . . . 3 . . Analyze 3 | . . . 3 . . Garrison Access Hacks . | . . . . . . Unauthorized Hacks 5 | . 2 . 3 . . Terminals 5 | . 2 . 3 . . Botnet 5 | . 2 . 3 . . Fabricators . | . . . . . . Repair Stations . | . . . . . . Recycling Units . | . . . . . . Scanalyzers . | . . . . . . Garrison Access . | . . . . . . Data Cores Recovered . | . . . . . . Used . | . . . . . . Hacking Detections 9 | . 5 . 4 . . Full Trace Events . | . . . . . . Feedback Events . | . . . . . . Feedback Blocked . | . . . . . . Robot Schematics Acquired . | . . . . . . Robots Built . | . . . . . . Authchips . | . . . . . . Time . | . . . . . . Total Robot Build Rating . | . . . . . . Part Schematics Acquired 4 | . . . 4 . . Parts Built . | . . . . . . Authchips . | . . . . . . Time . | . . . . . . Total Part Build Rating . | . . . . . . Parts Repaired 1 | . . . 1 . . Time 32 | . . . 32 . . Parts Recycled . | . . . . . . Recycled Matter . | . . . . . . Retrieved Matter . | . . . . . . Retrieved Components . | . . . . . . Parts Scanalyzed 3 | . . . 3 . . Part Schematics Acquired 3 | . . . 3 . . Parts Damaged 1 | . . . 1 . . Bothacking | -11 -10 -10 -9 -9 -9 ------------ Run | Yrd Mat Min Mat Min Exi Used RIF Installer . | . . . . . . Robots Hacked . | . . . . . . Non-combat . | . . . . . . Combat . | . . . . . . Robot Hacks Applied . | . . . . . . Relay Couplers Released . | . . . . . . Fabnet Peak Effective % . | . . . . . . Robots Rewired . | . . . . . . Allies Hacked . | . . . . . . Hacks Repelled . | . . . . . . Allies | -11 -10 -10 -9 -9 -9 -------- Run | Yrd Mat Min Mat Min Exi Total Allies 3 | . . 1 . 2 . Largest Group 2 | . . 1 . 2 . Highest-Rated Group 41 | . . 31 . 41 . Highest-Rated Ally 31 | . . 31 . 31 . Total Orders . | . . . . . . Ally Attacks 4 | . . . . 4 . Total Damage 82 | . . . . 82 . Kills 3 | . . . . 3 . Allies Corrupted . | . . . . . . Allies Melted . | . . . . . . Intel | -11 -10 -10 -9 -9 -9 ------- Run | Yrd Mat Min Mat Min Exi Robot Analysis Total 1 | . . . 1 . . Derelict Logs Recovered 1 | . . 1 . . . Drone Launches . | . . . . . . Drone Recoveries . | . . . . . . Exploration | -11 -10 -10 -9 -9 -9 ------------- Run | Yrd Mat Min Mat Min Exi Turns Passed 3705 | 228 869 291 1176 118 1023 Spaces Moved 1984 | 104 436 187 585 76 596 Core 1 | 1 . . . . . Treads 309 | 103 129 . . . 77 Legs . | . . . . . . Wheels 1674 | . 307 187 585 76 519 Hover . | . . . . . . Flight . | . . . . . . Fastest Speed 50 | 50 115 155 140 155 95 Average Speed 147 | 158 145 155 154 155 135 Slowest Speed 240 | 160 240 155 155 155 240 Overloaded Moves . | . . . . . . Propulsion Burnouts . | . . . . . . Robots Hopped . | . . . . . . Cave-ins Triggered . | . . . . . . Exploration Rate (%) 39 | 5 61 47 55 18 52 Regions Visited 5 Branch Regions 3 Pre-discovered Areas 2 | . . . . 1 1 Known Exits Taken 1 | . . . 1 . . Unknown Exits Taken 4 | 1 1 1 . 1 . Scrap Searched 1 | . . . . 1 . Spaces Dug 2 | . . . 2 . . Terrain Destroyed 26 | . 2 . 2 . 22 Melee 1 | . . . 1 . . Projectile 1 | . . . 1 . . AOE 24 | . 2 . . . 22 Terrain Rammed . | . . . . . . Walls Destroyed . | . . . . . . Machines Disabled . | . . . . . . Actions | -11 -10 -10 -9 -9 -9 --------- Run | Yrd Mat Min Mat Min Exi Total 2504 | 138 581 189 791 77 728 Wait 173 | 6 55 1 99 . 12 Move 1979 | 103 435 186 584 75 596 Hop . | . . . . . . Pick Up 73 | 7 20 1 22 1 22 Fast Attach 24 | 7 2 . 6 . 9 Attach 12 | . 2 . 3 . 7 Detach 6 | . 2 . 1 . 3 Swap 26 | 1 6 . 14 . 5 Drop 67 | . 9 1 29 1 27 Fire 143 | 14 50 . 32 . 47 Melee 1 | . . . 1 . . Ram . | . . . . . . Kick . | . . . . . . Crush . | . . . . . . Escape Stasis . | . . . . . . Rewire . | . . . . . . Trap . | . . . . . . Miscellaneous . | . . . . . . Route ------- -11/Scrapyard -10/Materials (discovered 2 exits: *Mat / [*Min]) -10/Mines -9/Materials (discovered 2 exits: *Mat / *Min) -9/Mines (discovered 2 exits: *Mat / *Exi) -9/Exiles (discovered 1 exit: [*Min]) History --------- Turn | Location | Event 11 | -11/Scrapyard | Discovered new exit (range 16) 229 | -11/Scrapyard | Entered Materials 325 | -10/Materials | Build established: Mutant 902 | -10/Materials | Discovered new exit (range 13) 1018 | -10/Materials | Discovered new exit (range 14) 1098 | -10/Materials | Entered Mines 1101 | -10/Mines | Received a Mining Laser from a helpful Derelict 1308 | -10/Mines | Discovered new exit (range 10) 1347 | -10/Mines | Learned 8 Materials zone layouts 1389 | -10/Mines | Entered Materials 1389 | -9/Materials | Evolved 2 slots: Utility x1, Weapon x1 1390 | -9/Materials | Identified exit to Mines 1390 | -9/Materials | Identified exit to Materials 1412 | -9/Materials | Central database locked down 1700 | -9/Materials | Build established: Gunner 1979 | -9/Materials | Repaired Imp. Treads 2565 | -9/Materials | Entered Mines 2566 | -9/Mines | Learned location of Storage (-7) 2572 | -9/Mines | Discovered exit to Materials (range 9) 2617 | -9/Mines | Deemed a non-threat by the Exiles lab entrance 2618 | -9/Mines | Discovered new exit (range 5) 2683 | -9/Mines | Entered Exiles 2723 | -9/Exiles | Met 8R-AWN 2748 | -9/Exiles | Met EX-HEX 2818 | -9/Exiles | Met EX-DEC 2978 | -9/Exiles | Discovered new exit (range 10) 3208 | -9/Exiles | Learned location of Zion (-7) 3302 | -9/Exiles | Attacked by the Exiles 3439 | -9/Exiles | Core integrity fell below 50% 3476 | -9/Exiles | Lost 5 parts (3n1u1w) 3500 | -9/Exiles | Core integrity fell below 20% 3523 | -9/Exiles | Destroyed 8R-AWN 3539 | -9/Exiles | Found Prototype Ballistic Gun 3539 | -9/Exiles | Identified 8R-AWN's Boregun 3543 | -9/Exiles | Lost 3 parts (1n2w) 3706 | -9/Exiles | Destroyed by DAS Turret with DAS Cannon Last Messages --------------- 03592_ Acquired Hvy. Hammer. 03595_ Acquired Seismic Detector. 03597_ Acquired Cooling System. 03600_ Acquired Plasma Cutter. 03602_ Acquired Trap Extractor. 03625_ Acquired Com. Wheel. 03635_ Acquired Imp. Ion Engine. 03638_ Acquired Adv. Targeting Computer. 03647_ Extracted 1 energy. 03650_ Acquired Mni. Grenade Launcher. 03697_ HV Slug penetrates Machine. 03697_ HV Slug penetrates Wall. 03698_ HV Slug penetrates Machine. 03698_ HV Slug penetrates DAS Turret. 03700_ HV Slug penetrates Machine. 03700_ Machine disabled. 03700_ HV Slug penetrates DAS Turret. 03701_ Prc. Beam Rifle destroyed. 03706_ Wheel destroyed. 03706_ Lgt. Treads destroyed. Map ----- +----------------------------------------------------+ | ?????????????????????????????????????????????????? | | ?????????????????????????????????????????????????? | | ?????????????????????????????????????????????????? | | ????????????#######??????????????????????????????? | | ######??????#!!! "#??????????????????????????????? | | #""##?????# "#??????????????????????????????? | | #?????# "#??????????????????????????? | | ##???## ""#????????????####??????????? | | #####" ""#???????????? """?????????? | | ##" ""#????????????" """#????????? | | #" #??????????????" #????????? | | ## ####??????????"" #?????????" | | ##### #??????????"" "#????????#" | | ????### # ####??????? ""?????????#" | | ######" ####????????" ""????????##" | | !!""""" # ####????? #??#?????##"" | | =## # ;#???## ## #######"" | | # # % % #####X ##""""""" | | ####" """" " "" | | " " #??#"# """ " | | #### #??#### " | | ##??# #?????### | | ???? # #???????### | | ??? ## #?????????## % | | ??# #?##??????????## % | | ?? # #??????????????##"@ | | ?# ##???????????????#" " """""" | | ?## # ?????????????????#" ######"" | | ?? ? ????????????????#"" ""##????### | | ??## #????????????????#""" """##???????? | | ???? ?????????????????""" """##????????? | | ???? ?????????????????""" ""#?????????? | | ???????????????????????" ##?????????? | | ???????????????????????"" ??????????" | | ??????????????????????"" ???????""" | | ???????????????????????"" ????? | | ????????????????????????"""t ???? | | ????????????????????????? ?????? | | ??????????????????????????? ???????" | | ??????????????????????????? ??????????????"## # | | ??????????????????????????????????????????????# ?? | | ??????????????????????????????????????????????#??? | | ?????????????????????????????????????????????????? | | ?????????????????????????????????????????????????? | | ?????????????????????????????????????????????????? | | ?????????????????????????????????????????????????? | | ?????????????????????????????????????????????????? | | ?????????????????????????????????????????????????? | | ?????????????????????????????????????????????????? | | ?????????????????????????????????????????????????? | +----------------------------------------------------+ Best States ------------- Heat Dissipation 54 Energy Generation 12 Energy Capacity 265 Matter Stores 300 Matter Capacity 450 Sight Range 16 Terrain Scan Density 10 Armor Coverage 150 Weapon Cycling 25 Evasion (%) 41 Targeting Accuracy 8 Recoil Reduction 2 Item Schematics ----------------- Huge Storage Unit | -9/Materials | Hacked Adv. Targeting Computer | -9/Materials | Scanalyzed Plasma Cutter | -9/Materials | Scanalyzed Structural Scanner | -9/Materials | Scanalyzed Robot Schematics ------------------ None Fabricated ------------ Nothing Alien Tech Used ----------------- None Achievements -------------- None Challenges ------------ None Game ------ Seed ThermalLinearBroadsword Manual? 0 Play Time 00:32:18 Cumulative 157.5 hours Start 2025.03.20 @ 01:16:26 End 2025.03.20 @ 01:46:04 Sessions 1 Manual Loads 0 Difficulty Rogue Special Mode None Game No. 89 Rogue 89 Adventurer 0 Explorer 0 Win Type - Total 3 Types 3/0/0/0/0/0/0/0/0 Lore% 61 Gallery% 70 Achievement% 57 Wizard Run 0 Options --------- Layout 0 ASCII 1 Keyboard 1 Movement Numpad Keybinds 0 Fullscreen 2 Font 20/Terminus Map View 66x50 Zoom Use 0% Tactical HUD 1 Map Filters NONE Filters NONE Steam 1 RUN: 3b265a7c-5d0d-47fb-934c-759b49ae4c6c